fUSD/lending_fUSD_20250304
["ID","MTS","AMOUNT","RATE_DAILY","PERIOD"]
[355345521,1741071046002,-501.25141439,0.00012581,2]
[355345522,1741071046011,-503.81144075,0.00012581,2]
[355345524,1741071046020,-1442.25,0.00012581,2]
[355345525,1741071046029,-501.11782681,0.00012581,2]
[355345526,1741071046038,-500.0,0.00012581,2]
[355345527,1741071046048,-2823.23,0.00012581,2]
[355345528,1741071046058,-501.95306068,0.00012581,2]
[355345529,1741071046068,-500.0,0.00012581,2]
[355345530,1741071046078,-500.0,0.00012581,2]
[355345531,1741071046088,-500.0,0.00012581,2]
[355345532,1741071046099,-503.05852439,0.00012581,2]
[355345533,1741071046109,-500.0,0.00012581,2]
[355345534,1741071046119,-500.0,0.00012581,2]
[355345535,1741071046129,-1489.85,0.00012581,2]
[355345536,1741071046138,-500.0,0.00012581,2]
[355345537,1741071046147,-500.0,0.00012581,2]
[355345538,1741071046157,-500.0,0.00012581,2]
[355345539,1741071046166,-500.0,0.00012581,2]
[355345540,1741071046175,-1604.87,0.00012581,2]
[355345541,1741071046185,-500.0,0.00012581,2]
[355345542,1741071046195,-500.0,0.00012581,2]
[355345543,1741071046205,-5232.37,0.00012581,2]
[355345544,1741071046214,-500.0,0.00012581,2]
[355345545,1741071046224,-500.0,0.00012581,2]
[355345546,1741071046234,-500.0,0.00012581,2]
[355345547,1741071046243,-500.0,0.00012581,2]
[355345548,1741071046254,-500.0,0.00012581,2]
[355345549,1741071046263,-1395.94,0.00012581,2]
[355345550,1741071046273,-21152.93,0.00012581,2]
[355345551,1741071046283,-504.12279587,0.00012583,2]
[355345552,1741071046294,-1352.18,0.00012583,2]
[355345553,1741071046303,-500.0,0.00012583,2]
[355345554,1741071046313,-2262.52,0.00012583,2]
[355345555,1741071046322,-1761.07,0.00012583,2]
[355345556,1741071046332,-1270.04,0.00012583,2]
[355345557,1741071046342,-500.0,0.00012583,2]
[355345558,1741071046352,-1824.95,0.00012583,2]
[355345559,1741071046361,-2012.71,0.00012583,2]
[355345560,1741071046374,-1080.54,0.00012583,2]
[355345561,1741071046384,-1299.77,0.00012583,2]
[355345562,1741071046393,-500.0,0.00012583,2]
[355345563,1741071046403,-1825.97,0.00012583,2]
[355345564,1741071046413,-945.46,0.00012583,2]
[355345565,1741071046422,-3264.69,0.00012583,2]
[355345566,1741071046432,-1947.58,0.00012583,2]
[355345567,1741071046441,-1841.47,0.00012583,2]
[355345568,1741071046450,-1490.37,0.00012583,2]
[355345569,1741071046459,-2682.76,0.00012583,2]
[355345570,1741071046469,-1050.69,0.00012583,2]
[355345571,1741071046478,-926.15,0.00012583,2]
[355345572,1741071046488,-1376.11,0.00012583,2]
[355345573,1741071046502,-1747.38,0.00012583,2]
[355345574,1741071046511,-2402.58,0.00012583,2]
[355345575,1741071046521,-1021.54,0.00012583,2]
[355345576,1741071046531,-2479.32,0.00012583,2]
[355345577,1741071046541,-1164.6,0.00012583,2]
[355345578,1741071046551,-500.0,0.00012583,2]
[355345579,1741071046560,-1629.3,0.00012583,2]
[355345580,1741071046570,-500.0,0.00012583,2]
[355345581,1741071046579,-500.0,0.00012583,2]
[355345582,1741071046589,-2905.5,0.00012583,2]
[355345583,1741071046598,-674.29,0.00012583,2]
[355345584,1741071046608,-1370.28,0.00012583,2]
[355345585,1741071046617,-2016.87,0.00012583,2]
[355345586,1741071046627,-500.0,0.00012583,2]
[355345587,1741071046637,-1382.15,0.00012583,2]
[355345588,1741071046646,-500.0,0.00012583,2]
[355345589,1741071046655,-1066.39,0.00012585,2]
[355345590,1741071046665,-500.0,0.00012585,2]
[355345592,1741071046674,-513.03952666,0.00012585,2]
[355345594,1741071046683,-853.02,0.00012585,2]
[355345595,1741071046693,-1021.44,0.00012585,2]
[355345596,1741071046703,-523.48279872,0.00012585,2]
[355345597,1741071046712,-500.0,0.00012585,2]
[355345598,1741071046722,-500.0,0.00012585,2]
[355345599,1741071046736,-500.0,0.00012585,2]
[355345600,1741071046747,-724.48,0.00012585,2]
[355345601,1741071046757,-500.0,0.00012585,2]
[355345602,1741071046766,-500.0,0.00012585,2]
[355345603,1741071046776,-515.80001728,0.00012585,2]
[355345604,1741071046786,-697.15,0.00012585,2]
[355345606,1741071046795,-500.0,0.00012585,2]
[355345608,1741071046805,-500.0,0.00012585,2]
[355345609,1741071046814,-500.0,0.00012585,2]
[355345610,1741071046824,-500.0,0.00012585,2]
[355345611,1741071046835,-150.0,0.00012585,2]
[355345612,1741071046844,-541.46785724,0.00012585,2]
[355345613,1741071046854,-689.77087721,0.00012585,2]
[355345614,1741071046867,-881.04,0.00012585,2]
[355345615,1741071046876,-500.0,0.00012585,2]
[355345616,1741071046886,-500.0,0.00012585,2]
[355345617,1741071046895,-344.4994349,0.00012585,2]
[355345618,1741071046905,-716.45,0.00012585,2]
[355345619,1741071046915,-500.0,0.00012585,2]
[355345620,1741071046924,-1249.01,0.00012585,2]
[355345621,1741071046934,-565.55284346,0.00012585,2]
[355345622,1741071046943,-500.0,0.00012585,2]
[355345623,1741071046953,-500.0,0.00012585,2]
[355345624,1741071046962,-514.75376771,0.00012585,2]
[355345625,1741071046971,-517.58510665,0.00012585,2]
[355345626,1741071046981,-500.0,0.00012585,2]
[355345627,1741071046990,-518.32510852,0.00012585,2]
[355345628,1741071047000,-500.0,0.00012585,2]
[355345629,1741071047009,-500.0,0.00012585,2]
[355345630,1741071047019,-500.0,0.00012585,2]
[355345631,1741071047028,-708.91,0.00012585,2]
[355345632,1741071047038,-500.0,0.00012585,2]
[355345633,1741071047047,-1240.66,0.00012585,2]
[355345634,1741071047056,-501.62735429,0.00012585,2]
[355345635,1741071047065,-500.0,0.00012585,2]
[355345636,1741071047075,-500.0,0.00012585,2]
[355345637,1741071047083,-500.0,0.00012585,2]
[355345638,1741071047092,-500.0,0.00012585,2]
[355345639,1741071047102,-500.0,0.00012585,2]
[355345640,1741071047111,-582.85,0.00012585,2]
[355345641,1741071047120,-780.79,0.00012585,2]
[355345642,1741071047129,-500.0,0.00012585,2]
[355345643,1741071047138,-1031.20056085,0.00012586,3]
[355345644,1741071047148,-1031.20056085,0.00012586,3]
[355345645,1741071047157,-1031.20056085,0.00012586,3]
[355345646,1741071047167,-4939.27,0.00012586,2]
[355345647,1741071047176,-308.48223448,0.00012586,2]
[355345648,1741071047185,-259.72780485,0.00012587,2]
[355345649,1741071047194,-671173.53165475,0.00012587,2]
[355345650,1741071047204,-527598.96633478,0.00012587,2]
[355345651,1741071049694,-500.0,0.00012579,2]
[355345652,1741071049704,-500.0,0.00012581,2]
[355345653,1741071049713,-516.27059961,0.00012581,2]
[355345654,1741071049723,-11967.28017264,0.00012587,2]
[355345657,1741071371972,-587.69291,0.00011558,2]
[355345659,1741071382582,171.0,0.00015,120]
[355345660,1741071461316,-300.0,0.00025203,30]
[355345661,1741071461342,-300.0,0.00025203,30]
[355345662,1741071461368,-400.0,0.00025203,30]
[355345663,1741071461395,-150.0,0.00025203,30]
[355345664,1741071461420,-5000.0,0.00025203,120]
[355345665,1741071461446,-1137.46763285,0.00025203,30]
[355345666,1741071461471,-2000.0,0.00025203,60]
[355345667,1741071461496,-5000.0,0.00025203,120]
[355345668,1741071461520,-5000.0,0.00025203,120]
[355345669,1741071461545,-5000.0,0.00025203,60]
[355345670,1741071461570,-5000.0,0.00025203,30]
[355345671,1741071461595,-5000.0,0.00025203,30]
[355345672,1741071461620,-5421.22046869,0.00025203,120]
[355345673,1741071461648,-1000.0,0.00025203,30]
[355345674,1741071461673,-4173.15323736,0.00025203,30]
[355345675,1741071461698,-10000.0,0.00025203,30]
[355345676,1741071461724,-32694.48375253,0.00025203,30]
[355345677,1741071461749,-205.22354,0.00025203,30]
[355345678,1741071461774,-16478.85868844,0.00025203,30]
[355345679,1741071461800,-6769.47553325,0.00025203,120]
[355345680,1741071461825,-4868.3588984,0.00025203,120]
[355345681,1741071461849,-1094.75868834,0.00025203,120]
[355345682,1741071487514,-150.0,0.00011558,2]
[355345882,1741071630892,-587.69291,0.00011547,2]
[355345884,1741071812602,-150.0,0.00011492,7]
[355345885,1741071812626,-300.0,0.00011546,2]
[355345886,1741071812651,-137.69291,0.00011547,2]
[355345887,1741071813230,-587.69291,0.00011547,2]
[355345889,1741071896083,-300.0,0.00011546,2]
[355345890,1741071896110,-22586.92127,0.00011547,2]
[355345891,1741071896139,-150.0,0.00011553,2]
[355345892,1741071896167,-262.30709,0.00011558,2]
[355345893,1741071896193,-150.0,0.00011572,2]
[355345894,1741071896220,-2751.0,0.00011572,2]
[355345895,1741071896247,-250.0,0.0001158,2]
[355345896,1741071896273,-1013.35,0.00011643,2]
[355345897,1741071896298,-170.68,0.00011905,2]
[355345898,1741071896322,-864.93845328,0.00012,2]
[355345899,1741071896349,-2974.36385,0.0001246,2]
[355345900,1741071896374,-1000.0,0.00012479,2]
[355345901,1741071896399,-2500.0,0.00012479,2]
[355345902,1741071896424,-1199.3224,0.00012479,2]
[355345903,1741071896454,-153.68808354,0.00012479,2]
[355345904,1741071896484,-842.33536332,0.00012479,2]
[355345905,1741071896515,-169.83776181,0.00012479,2]
[355345906,1741071896542,-427.96752706,0.00012479,2]
[355345907,1741071896570,-842.33536325,0.0001248,2]
[355345908,1741071896597,-153.68808348,0.0001248,2]
[355345909,1741071896625,-842.33536325,0.00012481,2]
[355345910,1741071896651,-150.0,0.00012481,2]
[355345911,1741071896678,-153.68808348,0.00012482,2]
[355345912,1741071896705,-842.33536325,0.00012482,2]
[355345913,1741071896735,-842.33536325,0.00012483,2]
[355345914,1741071896764,-153.68808348,0.00012483,2]
[355345915,1741071896794,-842.33536325,0.00012483,2]
[355345916,1741071896822,-153.68808348,0.00012484,2]
[355345917,1741071896849,-842.33536325,0.00012484,2]
[355345918,1741071896878,-842.33536325,0.00012485,2]
[355345919,1741071896905,-153.68808348,0.00012486,2]
[355345920,1741071896932,-842.33536325,0.00012486,2]
[355345921,1741071896959,-153.68808348,0.00012487,2]
[355345922,1741071896987,-842.33536325,0.00012487,2]
[355345923,1741071897014,-163.43135064,0.00012487,2]
[355345924,1741071897041,-427.96752706,0.00012487,2]
[355345925,1741071897066,-441.19,0.000125,2]
[355345926,1741071897091,-14087.75129368,0.00012569,2]
[355345927,1741071897119,-160.21093867,0.00012573,2]
[355345928,1741071897144,-503.27661027,0.00012573,2]
[355345929,1741071897169,-501.43646314,0.00012573,2]
[355345930,1741071897194,-500.0,0.00012573,2]
[355345931,1741071897221,-500.95753017,0.00012573,2]
[355345932,1741071897247,-306.30698101,0.00012577,2]
[355345933,1741071897271,-1000.0,0.00012578,2]
[355345934,1741071897296,-1711.06,0.00012578,2]
[355345935,1741071897320,-630.88,0.00012578,2]
[355345936,1741071897344,-520.83,0.00012578,2]
[355345937,1741071897369,-500.0,0.00012578,2]
[355345938,1741071897395,-500.0,0.00012578,2]
[355345939,1741071897421,-507.56,0.00012578,2]
[355345940,1741071897449,-1943.74,0.00012578,2]
[355345941,1741071897475,-821.13,0.00012578,2]
[355345942,1741071897503,-500.0,0.00012578,2]
[355345943,1741071897528,-500.0,0.00012578,2]
[355345944,1741071897552,-1241.83,0.00012578,2]
[355345945,1741071897577,-500.0,0.00012578,2]
[355345946,1741071897602,-500.0,0.00012578,2]
[355345947,1741071897627,-513.99481231,0.00012578,2]
[355345948,1741071897656,-500.0,0.00012578,2]
[355345949,1741071897681,-1807.53,0.00012578,2]
[355345950,1741071897706,-500.0,0.00012578,2]
[355345951,1741071897731,-500.0,0.00012578,2]
[355345952,1741071897758,-600.59,0.00012578,2]
[355345953,1741071897787,-501.3874563,0.00012578,2]
[355345954,1741071897813,-1192.93,0.00012578,2]
[355345955,1741071897840,-1039.82,0.00012578,2]
[355345956,1741071897866,-552.1,0.00012578,2]
[355345957,1741071897892,-500.0,0.00012578,2]
[355345958,1741071897918,-1951.67,0.00012578,2]
[355345959,1741071897943,-500.0,0.00012578,2]
[355345960,1741071897969,-500.0,0.00012578,2]
[355345961,1741071897993,-350.56046761,0.00012578,2]
[355345962,1741071927560,-300.0,0.00011698,2]
[355345969,1741072025583,-165.12,0.00011674,2]
[355345970,1741072025607,-1700.0,0.00011698,2]
[355345971,1741072025634,-165.12,0.00011824,2]
[355345972,1741072025659,-165.12,0.00011975,2]
[355345973,1741072025683,-150.0,0.00012092,2]
[355345974,1741072025706,-550.0,0.00012092,2]
[355345975,1741072025732,-165.12,0.00012125,2]
[355345976,1741072025758,-165.12,0.00012275,2]
[355345977,1741072025782,-1066.53557451,0.00012335,2]
[355345978,1741072117347,-162.26,0.00011571,2]
[355345979,1741072117392,-179.27,0.0001158,2]
[355345980,1741072117438,-1792.3321558,0.00012335,2]
[355345981,1741072117493,-165.12,0.00012425,2]
[355345982,1741072117540,-195.89763,0.0001246,2]
[355345983,1741072117587,-487.0379854,0.00012479,2]
[355345984,1741072117636,-487.03798539,0.0001248,2]
[355345985,1741072117684,-487.03798539,0.00012481,2]
[355345986,1741072117733,-487.03798539,0.00012482,2]
[355345987,1741072117776,-487.03798539,0.00012483,2]
[355345988,1741072117822,-487.03798539,0.00012483,2]
[355345989,1741072117868,-487.03798539,0.00012484,2]
[355345990,1741072117912,-487.03798539,0.00012485,2]
[355345991,1741072117958,-154.17351698,0.00012486,2]
[355345992,1741072118045,-332.86446841,0.00012486,2]
[355345993,1741072118091,-487.03798539,0.00012487,2]
[355345994,1741072118135,-500.0,0.00012573,2]
[355345995,1741072118180,-165.12,0.00012575,2]
[355345996,1741072118226,-150.0,0.00012577,2]
[355345997,1741072118278,-1793.66,0.00012577,2]
[355345998,1741072118335,-1694.58,0.00012577,2]
[355345999,1741072118378,-149.43953239,0.00012578,2]
[355346000,1741072118427,-500.0,0.00012578,2]
[355346001,1741072118478,-772.65519972,0.00012578,2]
[355346002,1741072118544,-545.19310532,0.00012578,2]
[355346003,1741072142256,-300.0,0.00012576,2]
[355346004,1741072142306,-1275.82,0.00012577,2]
[355346005,1741072142354,-1964.47,0.00012577,2]
[355346006,1741072142403,-2684.64,0.00012577,2]
[355346007,1741072142449,-593.14533545,0.00012577,2]
[355346008,1741072142523,-3008.01466455,0.00012577,2]
[355346009,1741072142571,-150.0,0.00012577,2]
[355346010,1741072142617,-12.59169496,0.00012578,2]
[355346011,1741072142664,-500.0,0.00012578,2]
[355346012,1741072142709,-59.5615782,0.00012578,2]
[355346025,1741072167340,-1356.1948,0.00012478,2]
[355346026,1741072167393,-5672.84540091,0.00012487,2]
[355346027,1741072167480,-1960.84204862,0.00012487,2]
[355346028,1741072167535,-770.74,0.00012577,2]
[355346029,1741072167588,-194.73822636,0.00012577,2]
[355346030,1741072192418,-1561.61177364,0.00012577,2]
[355346031,1741072192468,-2699.41,0.00012577,2]
[355346032,1741072192518,-2542.55,0.00012577,2]
[355346033,1741072192567,-424.57563679,0.00012577,2]
[355346034,1741072192659,-3023.24436321,0.00012577,2]
[355346035,1741072192714,-416.83450935,0.00012577,2]
[355346050,1741072231690,-758.20382605,0.00011685,2]
[355346051,1741072231702,-241.79617395,0.00011685,2]
[355346052,1741072231711,-189.07,0.00012335,2]
[355346053,1741072231794,-1155.1791168,0.00012335,2]
[355346054,1741072231806,-500.0,0.00012573,2]
[355346055,1741072231815,-502.7018934,0.00012573,2]
[355346056,1741072231825,-83.16549065,0.00012577,2]
[355346057,1741072231834,-828.45349915,0.00012577,2]
[355346058,1741072231887,-154.63650085,0.00012577,2]
[355346059,1741072231896,-247.1208163,0.00012577,2]
[355346060,1741072231908,-999.10841713,0.00012577,2]
[355346061,1741072231951,-1336.48076657,0.00012577,2]
[355346062,1741072231961,-3323.86,0.00012577,2]
[355346063,1741072231971,-1639.76,0.00012577,2]
[355346064,1741072231980,-2727.27,0.00012577,2]
[355346065,1741072231990,-522.76,0.00012577,2]
[355346066,1741072231999,-625.42,0.00012577,2]
[355346067,1741072232008,-1899.81,0.00012577,2]
[355346068,1741072232017,-820.74,0.00012577,2]
[355346069,1741072232027,-500.0,0.00012577,2]
[355346070,1741072232036,-1950.94,0.00012577,2]
[355346071,1741072232045,-3461.21,0.00012577,2]
[355346072,1741072232056,-84.04009956,0.00012577,2]
[355346073,1741072232067,-256.25013672,0.00012577,2]
[355346075,1741072236501,842.64,9.791e-05,2]
[355346155,1741072238788,-0.13436286,0.00012055,2]
[355346159,1741072238825,-842.50563714,0.00012055,2]
[355346162,1741072238835,-2453.95976372,0.00012577,2]
[355346164,1741072238845,-500.0,0.00012577,2]
[355346166,1741072238854,-702.09,0.00012577,2]
[355346168,1741072238863,-669.92,0.00012577,2]
[355346170,1741072238874,-1246.43,0.00012577,2]
[355346172,1741072238883,-440.4384218,0.00012578,2]
[355346174,1741072238895,-737.6,0.00012578,2]
[355346176,1741072238905,-500.0,0.00012578,2]
[355346177,1741072238914,-500.0,0.00012578,2]
[355346179,1741072238924,-500.0,0.00012578,2]
[355346182,1741072238934,-515.92920538,0.00012578,2]
[355346183,1741072238943,-500.0,0.00012578,2]
[355346186,1741072238953,-500.0,0.00012578,2]
[355346187,1741072238965,-500.0,0.00012578,2]
[355346189,1741072238974,-563.98,0.00012578,2]
[355346191,1741072238984,-502.86788279,0.00012578,2]
[355346193,1741072238994,-546.74115608,0.00012578,2]
[355346196,1741072239004,-948.45,0.00012578,2]
[355346198,1741072239014,-501.87009548,0.00012578,2]
[355346200,1741072239023,-507.53077344,0.00012578,2]
[355346202,1741072239032,-500.0,0.00012578,2]
[355346204,1741072239042,-500.0,0.00012578,2]
[355346206,1741072239052,-500.0,0.00012578,2]
[355346208,1741072239064,-1526.46,0.00012578,2]
[355346210,1741072239074,-500.0,0.00012578,2]
[355346212,1741072239084,-504.84205732,0.00012578,2]
[355346214,1741072239094,-500.0,0.00012578,2]
[355346216,1741072239104,-506.65577828,0.00012578,2]
[355346218,1741072239115,-500.0,0.00012578,2]
[355346220,1741072239124,-500.0,0.00012578,2]
[355346222,1741072239134,-1058.01,0.00012578,2]
[355346224,1741072239144,-505.04931842,0.00012578,2]
[355346226,1741072239153,-500.0,0.00012578,2]
[355346228,1741072239163,-505.58734366,0.00012578,2]
[355346230,1741072239173,-500.0,0.00012578,2]
[355346232,1741072239183,-1455.78,0.00012578,2]
[355346234,1741072239192,-500.0,0.00012578,2]
[355346236,1741072239202,-781.07,0.00012578,2]
[355346238,1741072239212,-507.69364763,0.00012578,2]
[355346240,1741072239223,-875.83,0.00012578,2]
[355346242,1741072239233,-500.0,0.00012578,2]
[355346244,1741072239243,-999.42,0.00012578,2]
[355346246,1741072239253,-720.82,0.00012578,2]
[355346248,1741072239263,-500.0,0.00012578,2]
[355346250,1741072239273,-500.0,0.00012578,2]
[355346252,1741072239283,-1035.94,0.00012578,2]
[355346254,1741072239293,-965.95,0.00012578,2]
[355346257,1741072239303,-500.0,0.00012578,2]
[355346259,1741072239317,-503.44119499,0.00012578,2]
[355346261,1741072239327,-521.54180546,0.00012578,2]
[355346263,1741072239337,-553.84,0.00012578,2]
[355346265,1741072239346,-500.0,0.00012578,2]
[355346267,1741072239356,-801.83,0.00012578,2]
[355346269,1741072239366,-771.55,0.00012578,2]
[355346271,1741072239376,-500.0,0.00012578,2]
[355346273,1741072239386,-500.0,0.00012578,2]
[355346275,1741072239396,-1041.43,0.00012578,2]
[355346277,1741072239406,-500.0,0.00012578,2]
[355346279,1741072239416,-507.25751015,0.00012578,2]
[355346281,1741072239426,-500.0,0.00012578,2]
[355346283,1741072239436,-500.0,0.00012578,2]
[355346285,1741072239445,-507.19034771,0.00012578,2]
[355346287,1741072239455,-500.0,0.00012578,2]
[355346289,1741072239466,-210.58162785,0.00012578,2]
[355346291,1741072239475,-500.0,0.00012578,2]
[355346293,1741072239486,-500.0,0.00012578,2]
[355346295,1741072239496,-555.33,0.00012578,2]
[355346297,1741072239506,-655.31,0.00012578,2]
[355346299,1741072239516,-500.0,0.00012578,2]
[355346301,1741072239526,-500.0,0.00012578,2]
[355346304,1741072239536,-1267.46,0.00012578,2]
[355346306,1741072239545,-500.0,0.00012578,2]
[355346308,1741072239555,-500.0,0.00012578,2]
[355346310,1741072239565,-500.0,0.00012578,2]
[355346312,1741072239574,-756.84,0.00012578,2]
[355346314,1741072239584,-911.3,0.00012578,2]
[355346316,1741072239594,-513.24218485,0.00012578,2]
[355346318,1741072239604,-1482.319812,0.00012578,2]
[355346320,1741072239613,-512.85287101,0.00012578,2]
[355346322,1741072239623,-810.74,0.00012578,2]
[355346324,1741072239632,-512.0841889,0.00012578,2]
[355346326,1741072239642,-514.6438388,0.00012578,2]
[355346328,1741072239652,-844.5,0.00012578,2]
[355346330,1741072239661,-525.1133212,0.00012578,2]
[355346332,1741072239670,-500.0,0.00012578,2]
[355346334,1741072239681,-500.0,0.00012578,2]
[355346336,1741072239694,-513.34224906,0.00012578,2]
[355346338,1741072239704,-2223.94843,0.00012578,2]
[355346340,1741072239713,-578.34,0.00012578,2]
[355346342,1741072239723,-815.87,0.00012578,2]
[355346344,1741072239732,-985.39,0.00012578,2]
[355346346,1741072239742,-500.0,0.00012578,2]
[355346348,1741072239751,-500.0,0.00012578,2]
[355346350,1741072239760,-162.866886,0.00012578,2]
[355346352,1741072239770,-1455.46,0.00012578,2]
[355346354,1741072239780,-662.49,0.00012578,2]
[355346356,1741072239790,-500.0,0.00012578,2]
[355346358,1741072239800,-500.0,0.00012578,2]
[355346360,1741072239811,-178.31268544,0.00012578,2]
[355346362,1741072239822,-738.75,0.00012578,2]
[355346364,1741072239832,-511.74476378,0.00012578,2]
[355346366,1741072239842,-500.0,0.00012578,2]
[355346368,1741072239852,-500.0,0.00012578,2]
[355346370,1741072239861,-500.0,0.00012578,2]
[355346372,1741072239871,-500.0,0.00012578,2]
[355346374,1741072239883,-500.0,0.00012578,2]
[355346376,1741072239893,-500.0,0.00012578,2]
[355346378,1741072239903,-500.0,0.00012578,2]
[355346380,1741072239913,-500.0,0.00012578,2]
[355346382,1741072239925,-500.0,0.00012578,2]
[355346384,1741072239935,-500.0,0.00012578,2]
[355346386,1741072239945,-500.0,0.00012578,2]
[355346388,1741072239954,-500.0,0.00012578,2]
[355346390,1741072239964,-500.0,0.00012578,2]
[355346392,1741072239974,-500.0,0.00012578,2]
[355346394,1741072239984,-253.96,0.00012578,2]
[355346396,1741072239994,-500.0,0.00012578,2]
[355346398,1741072240004,-500.0,0.00012578,2]
[355346401,1741072240014,-763.11,0.00012578,2]
[355346403,1741072240024,-946.13,0.00012578,2]
[355346405,1741072240034,-872.66,0.00012578,2]
[355346407,1741072240044,-500.0,0.00012578,2]
[355346409,1741072240053,-702.63,0.00012578,2]
[355346411,1741072240065,-1372.77,0.00012578,2]
[355346413,1741072240075,-161.88016435,0.00012578,2]
[355346415,1741072240085,-500.0,0.00012578,2]
[355346417,1741072240094,-500.0,0.00012578,2]
[355346419,1741072240104,-837.47,0.00012578,2]
[355346421,1741072240113,-480.0852628,0.00012578,2]
[355346423,1741072240123,-875.54,0.00012578,2]
[355346425,1741072240132,-500.0,0.00012578,2]
[355346427,1741072240142,-500.0,0.00012578,2]
[355346429,1741072240151,-582.41008248,0.00012578,2]
[355346434,1741072240191,-7.28991752,0.00012578,2]
[355346436,1741072240200,-500.0,0.00012578,2]
[355346438,1741072240210,-568.48,0.00012578,2]
[355346440,1741072240220,-205.30330121,0.00012578,2]
[355346442,1741072240230,-890.87,0.00012578,2]
[355346444,1741072240239,-500.0,0.00012578,2]
[355346446,1741072240249,-1954.56,0.00012578,2]
[355346448,1741072240259,-500.0,0.00012578,2]
[355346450,1741072240268,-540.45859347,0.00012578,2]
[355346452,1741072240278,-646.57,0.00012578,2]
[355346454,1741072240287,-752.63,0.00012578,2]
[355346456,1741072240296,-500.0,0.00012578,2]
[355346458,1741072240309,-563.04,0.00012578,2]
[355346460,1741072240319,-1626.04,0.00012578,2]
[355346462,1741072240329,-500.0,0.00012578,2]
[355346464,1741072240338,-1871.32,0.00012578,2]
[355346466,1741072240348,-500.0,0.00012578,2]
[355346468,1741072240357,-670.57,0.00012578,2]
[355346470,1741072240367,-500.0,0.00012578,2]
[355346472,1741072240376,-192.517258,0.00012578,2]
[355346474,1741072240385,-500.0,0.00012578,2]
[355346476,1741072240395,-801.6,0.00012578,2]
[355346478,1741072240404,-500.0,0.00012578,2]
[355346480,1741072240414,-2572.69,0.00012578,2]
[355346482,1741072240424,-318.85372848,0.00012578,2]
[355346484,1741072240434,-1089.26,0.00012578,2]
[355346486,1741072240444,-500.0,0.00012578,2]
[355346488,1741072240454,-577.54,0.00012578,2]
[355346490,1741072240463,-500.0,0.00012578,2]
[355346492,1741072240473,-500.0,0.00012578,2]
[355346494,1741072240483,-667.88,0.00012578,2]
[355346496,1741072240493,-1838.45,0.00012578,2]
[355346498,1741072240503,-500.0,0.00012578,2]
[355346500,1741072240512,-500.0,0.00012578,2]
[355346502,1741072240522,-2291.18,0.00012578,2]
[355346504,1741072240531,-635.0,0.00012578,2]
[355346506,1741072240541,-684.38,0.00012578,2]
[355346508,1741072240551,-500.0,0.00012578,2]
[355346510,1741072240563,-303.70196391,0.00012578,2]
[355346512,1741072240573,-808.49,0.00012578,2]
[355346514,1741072240582,-1383.24,0.00012578,2]
[355346516,1741072240592,-500.0,0.00012578,2]
[355346518,1741072240601,-500.0,0.00012578,2]
[355346520,1741072240611,-2779.74,0.00012578,2]
[355346522,1741072240620,-500.0,0.00012578,2]
[355346524,1741072240630,-1434.33,0.00012578,2]
[355346526,1741072240639,-211.38778591,0.00012578,2]
[355346528,1741072240649,-1060.77,0.00012578,2]
[355346530,1741072240658,-500.0,0.00012578,2]
[355346532,1741072240668,-500.0,0.00012578,2]
[355346534,1741072240678,-849.37,0.00012578,2]
[355346536,1741072240687,-910.48,0.00012578,2]